bitfinex-derivatives/quotes_SOLF0:USTF0_20260202
["timestamp","ask_amount","ask_price","bid_price","bid_amount"]
[1769990938269,7.86544652,101.14,101.05,8.9145]
[1769990938473,7.86544652,101.14,101.05,147.5909]
[1769990938669,138.5163,101.17,101.03,26.93286119]
[1769990938873,16.77039349,101.17,101.07,8.9125]
[1769990939075,7.86589349,101.17,101.08,138.6339]
[1769990939275,7.86589349,101.16,101.05,138.6685]
[1769990939475,146.40679349,101.15,101.03,138.6909]
[1769990939671,7.86589349,101.15,101.05,138.6764]
[1769990940076,155.31479349,101.15,101.05,8.9146]
[1769990940278,0.28,101.19,101.02,221.46]
[1769990940279,146.44809349,101.12,101.02,221.46]
[1769990940471,7.86589349,101.11,100.98,26.93286119]
[1769990940672,146.46223348,101.12,101.01,138.731]
[1769990940878,146.48143348,101.1,100.99,138.7535]
[1769990941277,146.52033348,101.07,100.96,138.7935]
[1769990941579,138.5679,101.13,100.92,248.37286119]
[1769990941580,7.86923348,101.05,100.92,248.37286119]
[1769990941774,7.86923348,101.09,101.01,138.7286]
[1769990941978,7.86923348,101.09,100.98,165.69426119]
[1769990942275,155.42073348,101.08,100.98,8.9207]
[1769990942474,7.86923348,101.05,100.95,138.8019]
[1769990942677,138.583,101.12,100.97,138.7802]
[1769990942678,146.48846393,101.08,100.97,138.7802]
[1769990942879,7.85166393,101.07,100.99,138.7588]
[1769990943082,138.6115,101.1,100.99,138.7588]
[1769990943083,7.85166393,101.1,101.02,138.718]
[1769990943479,7.85166393,101.1,101.0,138.7348]
[1769990943676,7.85166393,101.07,100.96,138.7958]
[1769990943880,7.85166393,101.06,100.97,138.7862]
[1769990944081,7.85166393,101.04,100.94,138.8246]
[1769990944581,7.85166393,101.04,100.95,138.812]
[1769990944778,7.85166393,101.04,100.93,138.8305]
[1769990945078,7.83713762,101.07,100.98,138.7686]
[1769990945281,146.51923762,101.05,100.94,138.824]
[1769990945483,7.83713762,101.05,100.95,138.811]
[1769990945784,7.83713762,101.05,100.96,8.9224]
[1769990946483,303.83713762,101.11,101.01,138.7317]
[1769990946682,7.83713762,101.11,101.01,138.7317]
[1769990947183,7.83713762,101.11,100.97,26.93286119]
[1769990947184,7.92044472,101.09,100.99,138.7515]
[1769990947383,7.92044472,101.08,100.98,138.7723]
[1769990947589,7.92044472,101.07,100.95,221.82]
[1769990947887,7.92037455,101.04,100.95,138.8141]
[1769990948484,7.92037455,101.04,100.93,138.834]
[1769990948681,7.92037455,101.04,100.95,138.8102]
[1769990948879,26.93286119,101.08,100.91,165.78906119]
[1769990948880,146.67357481,101.03,100.91,165.78906119]
[1769990949089,8.9186,101.01,100.92,8.9257]
[1769990949286,16.88737481,101.01,100.92,8.9257]
[1769990949683,16.88607481,101.03,100.92,138.8551]
[1769990950089,16.88607481,101.03,100.94,8.9244]
[1769990950384,146.68887481,101.02,100.91,26.93286119]
[1769990950590,146.68887481,101.02,100.84,317.0723]
[1769990950591,146.71487481,101.0,100.88,165.83216119]
[1769990950891,146.71487481,101.0,100.86,388.65280213]
[1769990950892,146.73737667,100.97,100.86,527.57840213]
[1769990951092,7.94977667,100.97,100.88,138.9102]
[1769990951292,7.94977667,100.97,100.9,138.8826]
[1769990951492,7.94977667,100.99,100.88,138.907]
[1769990951692,7.94977667,100.99,100.9,138.8757]
[1769990951893,7.94977667,100.99,100.89,138.8951]
[1769990953497,146.70388103,100.98,100.87,165.84946119]
[1769990953691,7.92928103,100.97,100.87,165.84946119]
[1769990954093,7.92928103,100.97,100.87,138.9166]
[1769990954401,7.92928103,100.97,100.87,147.8469]
[1769990955297,16.85158103,100.97,100.87,147.8541]
[1769990955499,7.92928103,100.97,100.87,147.8541]
[1769990955700,16.77398266,100.96,100.86,610.77280213]
[1769990955994,7.85068266,100.95,100.86,138.9377]
[1769990956196,7.85068266,100.95,100.87,8.9305]
[1769990956593,7.85068266,100.95,100.85,138.9509]
[1769990956793,7.85068266,100.95,100.86,138.9376]
[1769990957597,7.86202267,100.92,100.82,138.9855]
[1769990957793,146.68642267,100.95,100.84,138.9633]
[1769990957997,146.67742267,100.95,100.84,138.9635]
[1769990958192,7.86202267,100.93,100.84,8.9329]
[1769990958396,146.70612267,100.93,100.82,138.9931]
[1769990958802,7.86202267,100.93,100.85,138.9516]
[1769990959293,7.86202267,100.93,100.84,138.9655]
[1769990959497,7.89059684,100.96,100.84,26.93286119]
[1769990959689,7.89059684,100.96,100.87,138.9174]
[1769990960191,7.89059684,100.94,100.84,165.89746119]
[1769990960492,7.89059684,100.93,100.83,138.9723]
[1769990960695,7.89059684,100.93,100.85,138.9512]
[1769990961291,16.83562256,100.95,100.86,8.9312]
[1769990961499,7.91122256,100.95,100.86,138.9301]
[1769990961898,7.91122256,100.98,100.88,138.9016]
[1769990962198,16.83262256,100.98,100.89,8.9286]
[1769990962398,7.91122256,100.97,100.88,10.21032377]
[1769990962594,7.91122256,100.97,100.87,138.9114]
[1769990962990,16.83332256,100.97,100.88,138.9101]
[1769990963197,7.91122256,100.97,100.89,138.8964]
[1769990963497,7.91122256,100.97,100.88,10.21032377]
[1769990963498,7.91122256,100.97,100.9,8.9279]
[1769990963698,7.91430343,101.0,100.9,8.9279]
[1769990963900,7.91430343,100.99,100.9,8.9279]
[1769990964298,7.91430343,100.97,100.88,8.9293]
[1769990964499,7.91430343,100.97,100.88,138.9103]
[1769990964702,7.91430343,100.97,100.87,138.9227]
[1769990965201,8.9208,100.99,100.9,10.21402662]
[1769990965396,7.91495597,100.99,100.9,10.21402662]
[1769990965602,7.91495597,101.02,100.93,8.9249]
[1769990965799,7.91495597,100.99,100.89,149.10872662]
[1769990966297,7.91495597,100.99,100.91,8.9267]
[1769990966505,8.919,101.01,100.91,149.07772662]
[1769990966805,8.919,101.01,100.92,138.8551]
[1769990966806,7.91331437,101.01,100.92,138.8551]
[1769990967505,7.91331437,101.01,100.91,158.00822662]
[1769990967702,7.91331437,101.04,100.94,138.8268]
[1769990968096,16.82931437,101.04,100.95,157.95152662]
[1769990968299,7.91331437,101.04,100.95,149.02692662]
[1769990969100,7.91331437,101.04,100.96,8.9226]
[1769990969300,7.89504191,101.07,100.98,138.7657]
[1769990969502,146.49174191,101.11,101.0,138.7452]
[1769990969705,7.89504191,101.1,101.01,10.21402662]
[1769990970199,10.21402662,101.14,101.04,138.688]
[1769990970200,7.89504191,101.13,101.04,138.688]
[1769990971002,7.87874594,101.16,101.07,138.6487]
[1769990971198,7.87874594,101.16,101.09,138.6187]
[1769990971403,0.28,101.19,101.09,138.6187]
[1769990971404,8.15874594,101.19,101.11,138.592]
[1769990971600,0.28,101.19,101.13,138.5638]
[1769990971802,0.28,101.19,101.11,148.80042662]
[1769990972100,146.64434594,101.19,101.09,138.6219]
[1769990972505,146.64434594,101.19,101.07,138.6468]
[1769990972506,7.87874594,101.16,101.07,138.6468]
[1769990972905,7.87874594,101.16,101.05,221.24]
[1769990972906,7.88132161,101.14,101.05,230.1546]
[1769990973107,7.88132161,101.14,101.05,368.8273]
[1769990973305,146.43542161,101.14,101.05,221.24]
[1769990973505,146.45272161,101.13,101.02,359.937]
[1769990973707,146.45272161,101.13,101.0,40.05030238]
[1769990973708,7.88132161,101.15,101.05,138.6766]
[1769990973908,155.32862161,101.15,101.05,8.9148]
[1769990974208,7.88132161,101.18,101.08,138.6351]
[1769990974406,7.88132161,101.18,101.06,40.05030238]
[1769990974604,7.88132161,101.16,101.06,178.69990238]
[1769990974796,7.88132161,101.16,101.07,138.6473]
[1769990975004,7.88132161,101.16,101.07,8.9129]
[1769990975205,146.43159407,101.15,101.03,178.74210238]
[1769990975503,7.88909407,101.15,101.06,147.5764]
[1769990975801,7.88909407,101.15,101.03,40.05030238]
[1769990975802,7.88909407,101.15,101.07,138.6482]
[1769990976009,146.38829407,101.18,101.06,178.70160238]
[1769990976308,146.40259407,101.17,101.06,138.6513]
[1769990976706,7.88622319,101.14,101.04,221.24]
[1769990977104,7.88622319,101.14,101.04,359.928]
[1769990977305,7.88622319,101.14,101.05,138.6765]
[1769990977799,7.886329,101.13,101.04,221.24]
[1769990978106,7.886329,101.13,101.04,359.93]
[1769990978502,7.886329,101.13,101.04,230.1557]
[1769990978710,146.453829,101.13,101.02,138.7167]
[1769990979303,7.886329,101.13,101.03,138.695]
[1769990979509,7.886329,101.13,101.03,138.7034]
[1769990980106,7.85355823,101.11,101.0,178.78410238]
[1769990980309,146.48355823,101.09,100.99,221.26]
[1769990980609,155.40265823,101.08,100.96,360.111]
[1769990980911,7.83474477,101.07,100.97,138.7843]
[1769990981111,16.74804477,101.07,100.97,8.9215]
[1769990981313,16.74804477,101.07,100.97,147.7067]
[1769990981507,7.83474477,101.07,100.97,147.7067]
[1769990981708,7.83474477,101.07,100.98,147.6925]
[1769990981904,7.83474477,101.07,100.98,8.9206]
[1769990982114,7.83474477,101.07,100.97,138.7855]
[1769990982411,7.83474477,101.06,100.97,8.9216]
[1769990983007,7.83474477,101.06,100.97,147.7077]
[1769990983311,16.7119026,101.09,100.99,138.7582]
[1769990983510,7.8000026,101.08,100.98,138.7722]
[1769990983812,7.8000026,101.08,100.99,138.7585]
[1769990984010,7.8000026,101.08,100.98,138.7719]
[1769990984210,7.8000026,101.08,100.97,178.83470238]
[1769990984409,7.8000026,101.07,100.98,8.9205]
[1769990985613,16.69800598,101.1,101.0,138.7404]
[1769990986007,0.38,101.09,101.0,138.7404]
[1769990986515,0.38,101.09,101.02,138.717]
[1769990986711,0.38,101.09,101.01,138.7314]
[1769990986911,8.17151794,101.09,100.98,220.82]
[1769990987117,146.79361794,101.09,100.98,359.5919]
[1769990987319,8.17151794,101.09,101.0,138.7448]
[1769990987717,8.17151794,101.09,101.0,8.9189]
[1769990988009,8.17151794,101.09,101.0,138.7415]
[1769990988215,0.38,101.09,101.03,138.6999]
[1769990988408,567.02,101.15,101.03,69.99030238]
[1769990988409,7.79151794,101.15,101.03,69.99030238]
[1769990988612,7.79795022,101.18,101.09,138.6173]
[1769990989014,16.70175022,101.18,101.09,8.9109]
[1769990989313,7.79795022,101.17,101.09,8.9109]
[1769990989921,7.79795022,101.17,101.1,8.9102]
[1769990990414,7.79795022,101.2,101.11,138.5929]
[1769990990619,7.79795022,101.2,101.12,138.5807]
[1769990991315,7.79795022,101.2,101.1,359.4379]
[1769990991523,7.79795022,101.2,101.1,138.5979]
[1769990991815,7.79456193,101.19,101.09,138.6168]
[1769990992514,7.79456193,101.22,101.11,138.5839]
[1769990992720,7.79456193,101.22,101.09,40.05030238]
[1769990992721,7.79456193,101.22,101.13,138.5646]
[1769990993520,7.80541842,101.21,101.14,8.9067]
[1769990993922,89.56490478,101.24,101.15,138.5394]
[1769990994117,10.58490478,101.24,101.16,8.9048]
[1769990996121,10.58490478,101.24,101.16,147.4295]
[1769990996820,10.58490478,101.24,101.15,138.5394]
[1769990997518,138.4305,101.23,101.12,369.11912289]
[1769990997719,138.4305,101.23,101.12,148.73912289]
[1769990997720,7.85914129,101.22,101.12,148.73912289]
[1769990997922,7.85914129,101.22,101.14,138.5531]
[1769990998124,2.77948636,101.24,101.16,138.5252]
[1769990998319,2.77948636,101.24,101.16,148.68402289]
[1769990998922,2.77948636,101.24,101.16,10.15882289]
[1769990999125,10.64106516,101.24,101.14,230.63882289]
[1769990999429,7.8615788,101.2,101.1,138.5955]
[1769990999723,146.3624788,101.18,101.08,230.73882289]
[1769990999920,7.8615788,101.17,101.05,138.6748]
[1769991000222,16.7691788,101.14,101.03,138.7005]
[1769991000524,148.68642289,101.16,101.05,138.6764]
[1769991000717,8.9055,101.16,101.07,8.9128]
[1769991001029,146.41923221,101.14,101.04,10.15882289]
[1769991001222,7.86513221,101.2,101.07,10.15882289]
[1769991001425,7.86513221,101.2,101.03,277.4071]
[1769991001426,7.86513221,101.2,101.09,148.77992289]
[1769991001822,7.86513221,101.16,101.08,138.6353]
[1769991002027,138.4976,101.19,101.08,138.6353]
[1769991002028,7.86513221,101.19,101.09,10.15882289]
[1769991002330,7.86513221,101.19,101.11,148.75122289]
[1769991002525,7.86513221,101.23,101.15,138.5375]
[1769991002721,7.86513221,101.23,101.15,10.15882289]
[1769991003028,7.82267192,101.22,101.12,138.5684]
[1769991003227,7.82267192,101.2,101.11,8.909]
[1769991003430,146.33857192,101.17,101.06,148.82172289]
[1769991003634,7.82267192,101.2,101.1,138.6058]
[1769991003825,7.82267192,101.23,101.13,138.566]
[1769991004529,7.86438185,101.2,101.1,10.15882289]
[1769991004831,7.86438185,101.17,101.08,8.9116]
[1769991005032,7.86438185,101.16,101.06,138.656]
[1769991005235,7.86438185,101.18,101.08,138.6342]
[1769991005532,7.86438185,101.17,101.06,148.80882289]
[1769991005727,7.86438185,101.15,101.05,138.6756]
[1769991005928,7.86438185,101.15,101.07,138.6494]
[1769991006125,138.5041,101.18,101.08,138.6347]
[1769991006126,16.76848185,101.18,101.08,138.6347]
[1769991006322,16.76848185,101.18,101.08,138.6338]
[1769991006323,7.86438185,101.17,101.08,138.6338]
[1769991006727,7.86438185,101.17,101.09,8.9112]
[1769991006921,7.85673069,101.16,101.06,10.15882289]
[1769991007123,7.85673069,101.16,101.06,138.6566]
[1769991007328,7.85673069,101.16,101.08,148.79042289]
[1769991007529,7.85673899,101.19,101.09,138.622]
[1769991007731,7.85673899,101.19,101.1,8.91]
[1769991007925,7.85673899,101.19,101.11,138.5943]
[1769991008236,7.85673899,101.19,101.11,147.5034]
[1769991008426,7.85673899,101.19,101.11,138.5943]
[1769991008632,7.87362183,101.17,101.07,138.6445]
[1769991009026,7.87362183,101.17,101.04,87.79427155]
[1769991009229,7.87362183,101.2,101.11,138.5933]
[1769991009431,7.87362183,101.2,101.09,138.6134]
[1769991009637,7.87362183,101.2,101.11,138.5945]
[1769991010130,2.77948636,101.24,101.13,8.9075]
[1769991010131,138.4336,101.23,101.13,8.9075]
[1769991010327,7.87362183,101.23,101.13,138.5667]
[1769991010524,146.34552183,101.2,101.09,138.6125]
[1769991010725,7.87362183,101.2,101.12,138.5795]
[1769991010927,7.87362183,101.2,101.1,40.02337155]
[1769991010928,7.87362183,101.2,101.13,138.5619]
[1769991011333,7.87362183,101.2,101.12,138.5802]
[1769991011537,7.87362183,101.2,101.11,138.5917]
[1769991011934,16.77542183,101.2,101.12,8.908]
[1769991012128,7.87362183,101.2,101.12,8.908]
[1769991012629,7.87362183,101.2,101.1,178.62817155]
[1769991012836,7.87362183,101.2,101.11,138.5945]
[1769991013036,7.87862892,101.22,101.13,8.9073]
[1769991013233,7.87862892,101.2,101.1,178.63097155]
[1769991013637,7.87862892,101.2,101.12,8.9084]
[1769991013832,7.87862892,101.23,101.14,138.5522]
[1769991014031,7.87862892,101.22,101.12,138.5722]
[1769991014438,7.87862892,101.2,101.09,138.619]
[1769991015334,7.87862892,101.2,101.11,8.9094]
[1769991015532,7.87862892,101.2,101.11,138.593]
[1769991015731,7.87862892,101.2,101.11,8.9089]
[1769991015732,16.78062892,101.2,101.11,8.9089]
[1769991016033,7.87862892,101.2,101.11,138.5927]
[1769991016333,7.8869257,101.23,101.15,8.9058]
[1769991016531,7.8869257,101.23,101.13,138.5663]
[1769991017039,7.8869257,101.23,101.14,9.963]
[1769991017334,16.7863257,101.23,101.14,8.9068]
[1769991017528,7.90383447,101.21,101.11,359.3429]
[1769991017733,16.80503447,101.21,101.13,8.9076]
[1769991017931,10.68332083,101.24,101.1,40.02337155]
[1769991018134,10.68332083,101.24,101.15,138.538]
[1769991018330,10.68332083,101.24,101.14,9.963]
[1769991018331,19.58192083,101.24,101.14,148.5124]
[1769991018530,296.0,101.32,101.2,40.02337155]
[1769991018730,46.21812146,101.35,101.25,8.8965]
[1769991019127,46.21812146,101.35,101.25,157.2623]
[1769991019327,46.21812146,101.34,101.25,8.8965]
[1769991019730,46.21812146,101.34,101.26,147.2852]
[1769991019930,46.21812146,101.34,101.26,138.3891]
[1769991020330,46.21812146,101.34,101.25,8.8967]
[1769991020533,46.21812146,101.34,101.24,138.4163]
[1769991020734,46.21812146,101.34,101.26,147.2841]
[1769991021038,46.20433656,101.37,101.27,138.3753]
[1769991021238,46.20433656,101.37,101.28,8.8943]
[1769991021440,46.20433656,101.36,101.26,138.3892]
[1769991022037,46.20433656,101.35,101.26,8.8958]
[1769991022232,46.20433656,101.33,101.22,358.9314]
[1769991022441,46.20433656,101.32,101.23,138.4293]
[1769991022642,46.20433656,101.32,101.22,138.4438]
[1769991022842,46.21532326,101.3,101.2,138.4703]
[1769991023143,46.21532326,101.29,101.2,8.9011]
[1769991023639,46.21532326,101.27,101.19,138.4845]
[1769991024346,46.21532326,101.27,101.17,138.5118]
[1769991024542,46.21532326,101.27,101.18,138.4942]
[1769991025137,46.21532326,101.27,101.2,138.4712]
[1769991025636,46.21532326,101.27,101.19,138.4815]
[1769991026241,46.21532326,101.27,101.21,138.4564]
[1769991026644,46.21532326,101.27,101.19,138.4786]
[1769991027045,46.21532326,101.27,101.21,8.9005]
[1769991027245,46.20725469,101.31,101.22,138.4435]
[1769991027739,46.20725469,101.31,101.17,220.44]
[1769991027944,46.20725469,101.27,101.17,138.5116]
[1769991028338,46.20725469,101.27,101.2,138.4708]
[1769991028544,148.42215422,101.35,101.24,138.4132]
[1769991028743,46.20566072,101.33,101.23,10.15345422]
[1769991028945,55.09626072,101.33,101.25,8.897]
[1769991029140,46.20566072,101.36,101.27,148.51735422]
[1769991029345,46.20566072,101.36,101.27,148.52855422]
[1769991029945,46.20566072,101.36,101.27,10.15345422]
[1769991030146,46.20566072,101.4,101.3,148.48195422]
[1769991030354,46.20566072,101.4,101.3,148.48705422]
[1769991030554,46.20566072,101.38,101.29,138.3446]
[1769991030753,46.20566072,101.38,101.28,148.50865422]
[1769991031154,46.20566072,101.38,101.3,8.8926]
[1769991031349,46.20566072,101.38,101.28,148.50215422]
[1769991031747,46.25082796,101.36,101.26,148.53145422]
[1769991032152,46.25082796,101.34,101.24,138.4053]
[1769991032450,46.25082796,101.32,101.26,138.387]
[1769991032644,46.25082796,101.32,101.25,10.15345422]
[1769991032846,46.25082796,101.32,101.23,148.57685422]
[1769991033051,46.25082796,101.32,101.23,10.15345422]
[1769991033354,46.25082796,101.32,101.22,138.4337]
[1769991033851,46.25082796,101.32,101.22,147.3331]
[1769991034350,46.2571112,101.3,101.2,8.9011]
[1769991034751,46.2571112,101.3,101.2,147.3723]
[1769991035453,46.30153721,101.28,101.18,8.903]
[1769991035653,46.30153721,101.27,101.18,8.903]
[1769991035856,46.30153721,101.27,101.19,138.4834]
[1769991036546,46.30153721,101.3,101.21,138.4552]
[1769991036953,46.26229073,101.33,101.24,10.15345422]
[1769991037150,46.26229073,101.37,101.27,138.3699]
[1769991037352,46.26229073,101.37,101.27,10.15345422]
[1769991037559,55.14939073,101.37,101.27,19.04865422]
[1769991037753,46.26231687,101.35,101.25,10.15345422]
[1769991037958,46.26231687,101.35,101.25,148.55565422]
[1769991038956,46.26231687,101.35,101.26,8.8957]
[1769991039459,46.26231687,101.35,101.29,8.8937]
[1769991039760,55.14622134,101.38,101.29,8.8937]
[1769991040156,46.25992134,101.37,101.27,157.42335422]
[1769991040355,46.25992134,101.37,101.24,138.4037]
[1769991040356,46.25992134,101.34,101.24,138.4037]
[1769991040556,46.28236802,101.37,101.27,138.3689]
[1769991040757,46.28236802,101.36,101.27,8.8952]
[1769991040961,46.28236802,101.35,101.25,10.15345422]
[1769991041157,46.28236802,101.34,101.24,138.4047]
[1769991041356,46.28236802,101.34,101.23,138.4296]
[1769991041357,46.28236802,101.33,101.23,138.4296]
[1769991041556,10.27,101.37,101.29,10.15345422]
[1769991041853,46.28236802,101.42,101.22,10.15345422]
[1769991041854,46.28236802,101.41,101.3,148.47995422]
[1769991042054,46.28236802,101.38,101.28,138.3528]
[1769991042255,46.28236802,101.36,101.26,138.3831]
[1769991042460,46.28236802,101.36,101.25,138.3924]
[1769991042657,46.28236802,101.36,101.27,138.3755]
[1769991042963,46.28236802,101.36,101.26,147.2851]
[1769991043158,46.27202555,101.39,101.3,138.3331]
[1769991044357,46.27202555,101.39,101.28,138.3616]
[1769991044754,46.27202555,101.39,101.29,138.3476]
[1769991045162,46.21788907,101.38,101.29,138.3482]
[1769991045362,46.21788907,101.38,101.28,138.3615]
[1769991045663,46.21788907,101.38,101.25,249.95]
[1769991045664,55.10478907,101.37,101.26,138.3864]
[1769991045861,46.21788907,101.37,101.28,138.3569]
[1769991046159,184.45708907,101.37,101.27,10.15345422]
[1769991046364,46.21793496,101.34,101.24,138.4134]
[1769991046764,55.10763496,101.34,101.25,8.8969]
[1769991047162,46.21793496,101.34,101.25,147.2996]
[1769991047364,46.21793496,101.34,101.25,8.8969]
[1769991048068,46.21793496,101.34,101.23,10.15345422]
[1769991048069,46.42269695,101.32,101.23,8.8989]
[1769991048865,55.31439695,101.32,101.23,8.8989]
[1769991049062,46.42269695,101.32,101.24,8.8979]
[1769991049656,46.42269695,101.32,101.22,8.8994]
[1769991050255,55.32441054,101.31,101.21,230.27345422]
[1769991050555,55.32441054,101.31,101.2,138.4682]
[1769991050766,46.42718507,101.3,101.2,138.4682]
[1769991051265,46.42718507,101.3,101.21,138.4568]
[1769991052163,46.42718507,101.3,101.19,10.15345422]
[1769991052463,55.31898507,101.32,101.23,8.8989]
[1769991053470,55.31028898,101.3,101.2,138.4696]
[1769991053769,55.31028898,101.3,101.17,17.42857697]
[1769991053770,46.41718898,101.29,101.18,138.4888]
[1769991053967,55.31198898,101.28,101.19,8.902]
[1769991054363,46.41718898,101.27,101.16,138.5147]
[1769991054565,46.41335514,101.26,101.17,8.9036]
[1769991054965,147.2714,101.27,101.14,138.5441]
[1769991054966,46.41335514,101.24,101.14,138.5441]
[1769991055173,46.41335514,101.24,101.15,138.5363]
[1769991055474,46.41335514,101.27,101.17,138.5119]
[1769991055670,46.41335514,101.27,101.19,138.4837]
[1769991056268,46.41335514,101.27,101.2,8.9015]
[1769991056571,46.41335514,101.27,101.19,138.4824]
[1769991057175,46.41335514,101.27,101.19,148.63585422]
[1769991057365,46.41335514,101.27,101.2,8.9014]
[1769991058270,46.41335514,101.27,101.18,147.4011]
[1769991058464,46.41335514,101.27,101.18,138.4951]
[1769991058675,46.41335514,101.27,101.17,166.09143119]
[1769991058867,46.41335514,101.27,101.17,148.66285422]
[1769991059272,46.41335514,101.27,101.17,166.09143119]
[1769991060476,46.3776461,101.3,101.2,138.4707]
[1769991060780,46.40407774,101.28,101.17,176.05693119]
[1769991061073,8.8957,101.27,101.17,174.99793119]
[1769991061273,55.29977774,101.27,101.17,174.99793119]
[1769991061470,46.40407774,101.22,101.12,518.66232865]
[1769991061772,46.40407774,101.2,101.09,156.03697697]
[1769991062072,46.40407774,101.2,101.1,138.6078]
[1769991062474,46.40407774,101.18,101.08,138.6232]
[1769991062673,46.40407774,101.18,101.1,138.6077]
[1769991062879,46.40407774,101.18,101.08,148.78315422]
[1769991063178,46.4123329,101.17,101.07,138.6491]
[1769991063572,46.4123329,101.16,101.05,148.82075422]
[1769991063876,46.4123329,101.16,101.07,138.6432]
[1769991064074,46.4123329,101.16,101.08,138.6355]
[1769991064274,46.4123329,101.19,101.09,148.76755422]
[1769991064670,46.4123329,101.19,101.12,8.9085]
[1769991064874,46.4123329,101.19,101.09,148.76765422]
[1769991065076,46.4123329,101.19,101.1,138.6013]
[1769991065278,55.42218615,101.18,101.07,367.43945422]
[1769991065879,55.42218615,101.18,101.09,8.9111]
[1769991066081,46.51808615,101.18,101.09,138.6214]
[1769991066276,46.51808615,101.18,101.1,138.608]
[1769991067368,46.51808615,101.18,101.11,8.9093]
[1769991068479,46.51808615,101.18,101.09,138.6156]
[1769991068673,46.51808615,101.18,101.1,138.6061]
[1769991069078,46.51808615,101.18,101.09,19.06425422]
[1769991069276,46.51808615,101.18,101.09,147.5328]
[1769991069970,46.51808615,101.18,101.09,8.9108]
[1769991070673,46.51808615,101.18,101.07,366.1961]
[1769991070872,46.57417509,101.15,101.04,148.83585422]
[1769991071482,46.57417509,101.14,101.05,8.9142]
[1769991072085,46.57417509,101.17,101.07,138.6493]
[1769991072272,46.57417509,101.17,101.06,367.78325422]
[1769991073376,46.57417509,101.17,101.07,8.9124]
[1769991073377,55.47867509,101.17,101.07,8.9124]
[1769991073681,46.57417509,101.17,101.07,138.648]
[1769991073882,46.57417509,101.17,101.06,148.81305422]
[1769991074182,46.57375634,101.16,101.05,357.9149]
[1769991074785,46.57190757,101.14,101.06,8.9139]
[1769991075181,46.57190757,101.14,101.05,138.6721]
[1769991075384,46.57190757,101.1,101.02,138.7151]
[1769991075580,46.57190757,101.13,101.03,138.7034]
[1769991076584,55.47990757,101.13,101.04,8.9155]
[1769991078180,46.57190757,101.13,101.05,8.9144]
[1769991078393,46.57190757,101.13,101.02,138.7117]
[1769991078588,46.58017252,101.12,101.01,148.88415422]
[1769991079085,46.61691355,101.11,101.01,138.7265]
[1769991079286,46.61691355,101.11,101.03,8.9166]
[1769991080385,148.69165422,101.16,101.03,138.701]
[1769991080684,46.61691355,101.14,101.06,138.6622]
[1769991081187,46.61691355,101.14,101.08,8.9122]
[1769991082389,46.65031747,101.17,101.09,8.9112]
[1769991083689,46.65031747,101.17,101.1,8.9103]
[1769991084793,46.65727444,101.2,101.11,8.9093]
[1769991086294,55.55907444,101.2,101.11,8.9093]
[1769991086598,46.65727444,101.2,101.12,8.9085]
[1769991087095,46.65727444,101.2,101.09,215.8]
[1769991087096,46.67218544,101.23,101.16,8.905]
[1769991087791,46.67218544,101.27,101.17,19.05745422]
[1769991087993,46.67218544,101.27,101.18,138.491]
[1769991088593,46.67218544,101.27,101.18,138.4975]
[1769991088786,46.67447841,101.24,101.15,10.1474517]
[1769991088986,46.67447841,101.23,101.12,218.98]
[1769991089195,46.67447841,101.23,101.08,10.1474517]
[1769991089196,46.67447841,101.2,101.09,138.6183]
[1769991089389,46.67447841,101.18,101.08,138.6352]
[1769991089595,46.67447841,101.18,101.09,147.5322]
[1769991089792,46.67447841,101.18,101.1,138.6072]
[1769991090292,46.67447841,101.18,101.08,148.7707517]
[1769991090498,46.67447841,101.18,101.07,138.6463]
[1769991091192,46.67447841,101.18,101.09,8.9111]
[1769991091995,46.69881977,101.17,101.07,8.9127]
[1769991092389,46.69881977,101.17,101.09,147.5316]
[1769991092591,46.69848603,101.2,101.1,138.6082]
[1769991093097,46.69848603,101.2,101.11,8.9093]
[1769991093296,46.69848603,101.2,101.11,138.591]
[1769991094390,46.69848603,101.2,101.12,147.4891]
[1769991094592,46.69855991,101.23,101.14,138.5492]
[1769991094899,46.69855991,101.23,101.16,8.9047]
[1769991095489,46.69855991,101.26,101.17,8.9041]
[1769991096199,46.69855991,101.26,101.18,8.9029]
[1769991096992,46.69855991,101.26,101.18,147.4001]
[1769991097389,46.69898009,101.29,101.19,138.4747]
[1769991097596,46.69898009,101.29,101.2,148.6123517]
[1769991099200,46.74047917,101.32,101.22,138.4421]